fUST/lending_fUST_20250512
["ID","MTS","AMOUNT","RATE_DAILY","PERIOD"]
[360792083,1747027913076,-1563.28621324,0.00031043,120]
[360792084,1747027913103,-500.0,0.00031043,120]
[360792085,1747027913132,-500.0,0.00031043,120]
[360792086,1747027913159,-500.0,0.00031043,120]
[360792087,1747027913185,-500.0,0.00031043,120]
[360792088,1747027913210,-500.0,0.00031043,120]
[360792089,1747027913235,-500.0,0.00031043,120]
[360792090,1747027913261,-500.0,0.00031043,120]
[360792091,1747027913287,-500.0,0.00031043,120]
[360792092,1747027913312,-500.0,0.00031043,120]
[360792093,1747027913338,-500.0,0.00031043,120]
[360792094,1747027913458,-500.0,0.00031043,120]
[360792095,1747027913513,-500.0,0.00031043,120]
[360792096,1747027913543,-500.0,0.00031043,120]
[360792097,1747027913574,-1558.6656233,0.00031043,120]
[360792098,1747027913601,-3000.0,0.00031043,30]
[360792099,1747027913628,-2027.62,0.00031043,120]
[360792100,1747027913656,-2027.62,0.00031043,120]
[360792101,1747027913683,-2027.62,0.00031043,120]
[360792102,1747027913710,-2027.62,0.00031043,120]
[360792103,1747027913737,-2027.62,0.00031043,120]
[360792104,1747027913765,-2027.62,0.00031043,120]
[360792105,1747027913794,-2027.62,0.00031043,120]
[360792106,1747027913820,-2027.62,0.00031043,120]
[360792107,1747027913847,-2027.62,0.00031043,120]
[360792108,1747027913875,-2027.62,0.00031043,120]
[360792109,1747027913902,-2027.62,0.00031043,120]
[360792110,1747027913928,-2027.62,0.00031043,120]
[360792111,1747027913954,-2027.62,0.00031043,120]
[360792112,1747027913979,-2027.62,0.00031043,120]
[360792113,1747027914003,-2027.62,0.00031043,120]
[360792114,1747027914029,-2027.62,0.00031043,120]
[360792115,1747027914055,-2027.62,0.00031043,120]
[360792116,1747027914082,-2027.62,0.00031043,120]
[360792117,1747027914109,-2027.62,0.00031043,120]
[360792118,1747027914136,-2027.62,0.00031043,120]
[360792119,1747027914161,-2027.62,0.00031043,120]
[360792120,1747027914188,-2027.62,0.00031043,120]
[360792121,1747027914214,-2027.62,0.00031043,120]
[360792122,1747027914240,-2027.62,0.00031043,120]
[360792123,1747027914267,-500.0,0.00031043,120]
[360792124,1747027914293,-2893.56335226,0.00031043,120]
[360792125,1747027914320,-442.0,0.00031043,120]
[360792126,1747027914346,-2985.0,0.00031043,120]
[360792127,1747027914372,-1621.88263731,0.00031043,120]
[360792128,1747027914397,-1135.87618301,0.00031043,60]
[360792129,1747027914422,-731.59214602,0.00031043,120]
[360792130,1747027914447,-13272.0,0.00031043,30]
[360792131,1747027914471,-1000.0,0.00031043,120]
[360792132,1747027914496,-1000.0,0.00031043,120]
[360792133,1747027914521,-500.0,0.00031043,120]
[360792134,1747027914548,-989.0,0.00031043,120]
[360792135,1747027914575,-2530.9242304,0.00031043,35]
[360792136,1747027914600,-5000.0,0.00031043,120]
[360792137,1747027914626,-319.999999,0.00031043,30]
[360792138,1747027914652,-3000.0,0.00031043,120]
[360792139,1747027914677,-1961.65005953,0.00031043,120]
[360792140,1747027914702,-904.15159854,0.00031043,30]
[360792141,1747027914727,-16128.28214648,0.00031043,30]
[360792142,1747027914752,-1048.5,0.00031043,30]
[360792143,1747027914776,-1000.0,0.00031043,30]
[360792144,1747027914801,-1000.0,0.00031043,30]
[360792145,1747027914825,-1000.0,0.00031043,30]
[360792146,1747027914850,-1000.0,0.00031043,30]
[360792147,1747027914874,-1000.0,0.00031043,30]
[360792148,1747027914900,-1313.850634,0.00031043,30]
[360792149,1747027914925,-15948.13539771,0.00031043,45]
[360792150,1747027914950,-5425.84620026,0.00031043,30]
[360792151,1747027914974,-14943.0589294,0.00031043,30]
[360792152,1747027915000,-15810.12282737,0.00031043,60]
[360792153,1747027915027,-5000.0,0.00031043,120]
[360792154,1747027915052,-13320.04313262,0.00031043,120]
[360792155,1747027915076,-20718.16820776,0.00031043,120]
[360792156,1747027915101,-4637.57479757,0.00031043,120]
[360792157,1747027915126,-31341.24602742,0.00031043,120]
[360792158,1747027915152,-12244.15486228,0.00031043,120]
[360792159,1747027915177,-8821.49866586,0.00031043,120]
[360792160,1747027915201,-3473.08087923,0.00031043,30]
[360792161,1747027915227,-7101.87755163,0.00031043,120]
[360792162,1747027915254,-4992.20835091,0.00031043,60]
[360792163,1747027915281,-5838.70055812,0.00031043,30]
[360792164,1747027915306,-230.05113749,0.00031043,120]
[360792165,1747027915330,-9037.6164656,0.00031043,30]
[360792166,1747027915355,-5137.08802337,0.00031043,60]
[360792167,1747027915381,-8877.78386522,0.00031043,30]
[360792168,1747027915406,-4177.07477239,0.00031043,120]
[360792169,1747027915432,-12122.68719872,0.00031043,30]
[360792170,1747027915793,15267.66710506,0.00031043,30]
[360792171,1747027918488,663.152036,0.00031043,30]
[360792172,1747027925103,-300.0,0.00015998,2]
[360792173,1747027925127,-500.0,0.00015999,2]
[360792174,1747027925148,-504.00536451,0.00015999,2]
[360792175,1747027925170,-500.0,0.00015999,2]
[360792176,1747027925196,-500.0,0.00015999,2]
[360792177,1747027925217,-500.0,0.00015999,2]
[360792178,1747027925239,-500.0,0.00015999,2]
[360792179,1747027925260,-500.0,0.00015999,2]
[360792180,1747027925283,-500.0,0.00015999,2]
[360792181,1747027925308,-500.0,0.00015999,2]
[360792182,1747027925329,-542.78249094,0.00015999,2]
[360792183,1747027925351,-500.0,0.00015999,2]
[360792184,1747027925372,-375.40541202,0.00015999,2]
[360792185,1747027925394,-500.0,0.00015999,2]
[360792186,1747027925415,-500.0,0.00015999,2]
[360792187,1747027925437,-500.0,0.00015999,2]
[360792188,1747027925458,-500.0,0.00015999,2]
[360792189,1747027925478,-82258.80673253,0.00016,2]
[360792190,1747027936928,-225.68749952,0.00024,120]
[360792191,1747027936983,-156.060929,0.00030048,60]
[360792192,1747027937011,-160.015468,0.00030674,60]
[360792193,1747027937038,-160.015468,0.00030746,60]
[360792194,1747027937066,-160.015468,0.00030817,60]
[360792195,1747027937091,-160.015468,0.00030889,60]
[360792196,1747027937116,-160.015468,0.0003096,60]
[360792197,1747027937162,-200.0,0.0003385,36]
[360792198,1747027937193,-6250.0,0.0003597,120]
[360792199,1747027937219,-6250.0,0.0003597,120]
[360792200,1747027937243,-6250.0,0.0003598,120]
[360792201,1747027937271,-6250.0,0.0003598,120]
[360792202,1747027937296,-6250.0,0.0003598,120]
[360792203,1747027937323,-6256.83,0.0003598,120]
[360792204,1747027937349,-6250.0,0.0003599,120]
[360792205,1747027937373,-225.83,0.0003599,120]
[360792206,1747027937398,-6250.0,0.0003599,120]
[360792207,1747027937423,-6250.0,0.0003599,120]
[360792208,1747027937446,-6250.0,0.0003599,120]
[360792209,1747027937473,-54022.8822452,0.000362,120]
[360792210,1747027937497,-54022.88224517,0.000362,120]
[360792211,1747027937522,-54022.88224517,0.000362,120]
[360792212,1747027937547,-54022.88224517,0.000362,120]
[360792213,1747027937574,-54022.88224517,0.000362,120]
[360792214,1747027937601,-200.0,0.0003622,43]
[360792215,1747027937626,-11056.0760679,0.000365,120]
[360792216,1747027937651,-30297.52196935,0.00038,30]
[360792217,1747027937676,-200.0,0.0003858,49]
[360792218,1747027937701,-1100.0,0.00038904,60]
[360792219,1747027937731,-1100.0,0.00039452,60]
[360792220,1747027937758,-164874.45336775,0.000395,30]
[360792221,1747027937783,-15265.73,0.00039726,120]
[360792222,1747027937811,-1100.0,0.0004,60]
[360792223,1747027937838,-13901.05687999,0.0004,120]
[360792224,1747027937863,-12623.54026388,0.0004,30]
[360792225,1747027937887,-12623.54026388,0.0004,120]
[360792226,1747027937911,-15265.73,0.0004,120]
[360792227,1747027937935,-10000.0,0.0004,90]
[360792228,1747027937960,-160.0,0.0004,30]
[360792229,1747027937984,-160.0,0.0004,120]
[360792230,1747027938009,-160.0,0.0004,30]
[360792231,1747027938034,-160.0,0.0004,120]
[360792232,1747027938064,-160.0,0.0004,30]
[360792233,1747027938093,-160.0,0.0004,120]
[360792234,1747027938121,-15265.73,0.00040273,120]
[360792235,1747027938148,-15265.73,0.00040547,120]
[360792236,1747027938175,-1100.0,0.00040548,60]
[360792237,1747027938207,-500.0,0.0004059,30]
[360792238,1747027938233,-516.29119035,0.0004079,30]
[360792239,1747027938261,-15265.73,0.00040821,120]
[360792240,1747027938287,-200.0,0.0004095,56]
[360792241,1747027938313,-200.0,0.00041,90]
[360792242,1747027938339,-182.0,0.00041,90]
[360792243,1747027938365,-1256.0,0.00041,90]
[360792244,1747027938390,-15265.73,0.00041095,120]
[360792245,1747027938415,-151.34247851,0.00041095,30]
[360792246,1747027943505,160.0,0.0004,33]
[360792247,1747027943839,160.0,0.0004,33]
[360792248,1747027944095,422.20096692,0.0004,30]
[360792249,1747027944177,160.0,0.00041,37]
[360792250,1747027944502,422.20096692,0.0004,120]
[360792251,1747027945730,794.781,0.0004,30]
[360792284,1747028688225,10000.0,0.00022,120]
[360792297,1747028853118,-776.4384937,0.00014921,2]
[360792298,1747028853140,-151.0,0.00015548,2]
[360792299,1747028853163,-300.0,0.00015552,2]
[360792300,1747028853185,-300.0,0.00015552,2]
[360792301,1747028853207,-154.13821608,0.00015553,2]
[360792302,1747028853228,-158.75003217,0.00015553,2]
[360792303,1747028853250,-500.0,0.00015553,2]
[360792304,1747028853271,-577.72787024,0.00015553,2]
[360792305,1747028853300,-500.0,0.00015553,2]
[360792306,1747028853323,-500.0,0.00015553,2]
[360792307,1747028853345,-500.0,0.00015553,2]
[360792308,1747028853369,-500.0,0.00015553,2]
[360792309,1747028853394,-500.0,0.00015553,2]
[360792310,1747028853423,-500.0,0.00015553,2]
[360792311,1747028853448,-500.0,0.00015553,2]
[360792312,1747028853476,-500.0,0.00015553,2]
[360792313,1747028853498,-500.0,0.00015553,2]
[360792314,1747028853520,-500.0,0.00015553,2]
[360792315,1747028853542,-500.0,0.00015553,2]
[360792316,1747028853570,-500.0,0.00015553,2]
[360792317,1747028853594,-577.59276851,0.00015553,2]
[360792318,1747028853617,-500.0,0.00015553,2]
[360792319,1747028853640,-646.35942057,0.00015553,2]
[360792320,1747028853667,-425.0,0.00015553,2]
[360792321,1747028853690,-500.0,0.00015553,2]
[360792322,1747028853717,-500.0,0.00015553,2]
[360792323,1747028853737,-300.0,0.00015553,2]
[360792324,1747028853759,-300.0,0.00015553,2]
[360792325,1747028853780,-300.0,0.00015553,2]
[360792326,1747028853804,-1200.0,0.00015553,2]
[360792327,1747028853825,-6613.34325638,0.00015554,2]
[360792328,1747028854100,-369.00410648,0.00015554,2]
[360792337,1747028958095,-151.0,0.000155,2]
[360792338,1747028958119,-300.0,0.00015555,2]
[360792339,1747028958141,-294.03993562,0.00015556,2]
[360792340,1747028958163,-453.06586317,0.00015556,2]
[360792341,1747028958193,-325.0,0.00015556,2]
[360792342,1747028958215,-13486.29175034,0.00015557,2]
[360792348,1747028967085,-1864.98443862,0.00015557,2]
[360792479,1747029032669,-151.63523759,0.00015548,2]
[360792480,1747029032679,-1200.0,0.00015556,2]
[360792481,1747029032689,-300.0,0.00015556,2]
[360792482,1747029032698,-9548.72381104,0.00015557,2]
[360792483,1747029032708,-300.0,0.00015599,2]
[360792484,1747029032719,-311.7026645,0.000156,2]
[360792485,1747029032729,-500.0,0.000156,2]
[360792487,1747029032739,-500.0,0.000156,2]
[360792488,1747029032750,-8410.11626161,0.0001573,2]
[360792521,1747029033094,-1589.88373839,0.0001573,2]
[360792523,1747029033103,-407.02398691,0.00016,2]
[360792525,1747029033112,-312.02005888,0.000162,2]
[360792566,1747029038607,-187.97994112,0.000162,2]
[360792568,1747029038617,-127.6298927,0.000162,2]
[360792792,1747029040991,-448.52516718,0.000162,2]
[360792794,1747029041004,-466.83389475,0.000162,2]
[360792796,1747029041014,-8799.53432999,0.000162,2]
[360792798,1747029041024,-638.07071503,0.00016261,2]
[360792800,1747029041033,-152.0,0.00016423,2]
[360792802,1747029041043,-362.7713715,0.000165,2]
[360792804,1747029041052,-482.98019219,0.00016547,2]
[360792806,1747029041062,-500.0,0.00016547,2]
[360792808,1747029041072,-500.0,0.00016547,2]
[360792810,1747029041083,-500.0,0.00016547,2]
[360792812,1747029041092,-500.0,0.00016547,2]
[360792814,1747029041102,-500.0,0.00016547,2]
[360792816,1747029041111,-343.58084627,0.00016547,2]
[360792818,1747029041120,-500.0,0.00016547,2]
[360792820,1747029041130,-500.0,0.00016547,2]
[360792822,1747029041139,-500.0,0.00016547,2]
[360792824,1747029041149,-327.21559427,0.00016547,2]
[360792843,1747029041318,-175.6392797,0.00016548,2]
[360792845,1747029041329,-568.9363223,0.00016548,2]
[360792847,1747029041339,-175.6392797,0.00016548,2]
[360792850,1747029041348,-568.9363221,0.00016548,2]
[360792852,1747029041358,-175.6392797,0.00016548,2]
[360792854,1747029041367,-568.9363223,0.00016548,2]
[360792856,1747029041377,-175.6392797,0.00016548,2]
[360792858,1747029041387,-235.0671245,0.00016548,2]
[360792859,1747029041398,-175.6392797,0.00016548,2]
[360792860,1747029041407,-175.6392797,0.00016548,2]
[360792861,1747029041417,-179.0931255,0.00016548,2]
[360792862,1747029041427,-175.6392797,0.00016548,2]
[360792863,1747029041436,-315.6050574,0.00016556,2]
[360792864,1747029041445,-932.9778701,0.00016556,2]
[360792865,1747029041454,-153.0348258,0.00016556,2]
[360792866,1747029041464,-568.9363221,0.00016556,2]
[360792867,1747029041473,-175.6392797,0.00016556,2]
[360792868,1747029041482,-175.6392797,0.00016578,2]
[360792869,1747029041492,-732.4413061,0.000166,2]
[360792870,1747029041503,-500.0,0.000166,2]
[360792871,1747029041513,-500.0,0.000166,2]
[360792872,1747029041523,-561.69421384,0.000166,2]
[360792873,1747029041533,-500.0,0.000166,2]
[360792874,1747029041543,-500.0,0.000166,2]
[360792875,1747029041552,-500.0,0.000166,2]
[360792876,1747029041562,-500.0,0.000166,2]
[360792877,1747029041572,-506.46803802,0.000166,2]
[360792878,1747029041581,-175.6392797,0.00016656,2]
[360792879,1747029041591,-500.0,0.000168,2]
[360792880,1747029041600,-507.41963344,0.000168,2]
[360792881,1747029041609,-9804.70316879,0.000169,2]
[360792882,1747029041619,-680.84738746,0.00017,4]
[360792883,1747029041628,-420.0,0.00017016,2]
[360792884,1747029041637,-420.0,0.00017062,2]
[360792885,1747029041646,-160.2729224,0.00017091,2]
[360792886,1747029041655,-157.8733186,0.00017091,2]
[360792887,1747029041665,-157.8733186,0.00017091,2]
[360792888,1747029041674,-1147.9986438,0.00017091,2]
[360792889,1747029041683,-157.8733186,0.00017091,2]
[360792890,1747029041693,-157.8733186,0.00017091,2]
[360792891,1747029041702,-1680.0,0.00017102,2]
[360792892,1747029041711,-172.8833532,0.0001737,2]
[360792893,1747029041720,-9804.70316852,0.00017383,2]
[360792894,1747029041729,-9804.70316852,0.00017866,2]
[360792895,1747029041739,-157.8733186,0.00017913,2]
[360792896,1747029041749,-175.6392797,0.00017913,2]
[360792897,1747029041758,-157.8733186,0.00017913,2]
[360792898,1747029041767,-157.0316886,0.00017913,2]
[360792899,1747029041776,-175.6392797,0.00017913,2]
[360792900,1747029041785,-175.6392797,0.00017913,2]
[360792901,1747029041794,-175.6392797,0.00017913,2]
[360792902,1747029041803,-175.6392797,0.00017913,2]
[360792903,1747029041812,-175.6392797,0.00017913,2]
[360792904,1747029041821,-164.5930923,0.00017913,2]
[360792905,1747029041831,-2133.0,0.00018,14]
[360792906,1747029041840,-2000.0,0.00018,14]
[360792907,1747029041849,-4542.0,0.00018,2]
[360792908,1747029041859,-250.0,0.0001809,2]
[360792909,1747029041868,-9804.70316852,0.00018348,2]
[360792910,1747029041877,-587.0,0.00018612,2]
[360792911,1747029041886,-587.0,0.00018662,2]
[360792912,1747029041896,-402.47293044,0.00018801,2]
[360793130,1747029045590,-1948.52706956,0.00018801,2]
[360793132,1747029045600,-4599.94601618,0.00018831,2]
[360793208,1747029046832,-0.03618798,0.00018831,2]
[360793209,1747029046843,-3484.9999999,0.00018831,2]
[360794007,1747029100981,253.09,0.00022,120]
[360798031,1747029905419,151.0,0.00013699,2]
[360798034,1747030052102,-225.10201154,0.00013699,2]
[360798035,1747030052125,-508.048931,0.00013699,2]
[360798036,1747030052147,-446.92455047,0.00014289,2]
[360798140,1747030100457,-753.07544953,0.00014289,2]
[360798141,1747030100482,-300.0,0.00014289,2]
[360798142,1747030100504,-8276.92455047,0.0001429,2]
[360798144,1747030119372,45000.3334234,0.00022,120]
[360798145,1747030149092,-292.82684301,0.00014146,2]
[360798148,1747030149113,-2620.0,0.00014289,2]
[360798149,1747030149134,-23.75980323,0.0001429,2]
[360798151,1747030149156,-300.0,0.00015285,2]
[360798152,1747030149176,-300.0,0.00015286,2]
[360798153,1747030149197,-300.0,0.00015286,2]
[360798154,1747030149219,-4612.92461485,0.00015286,13]
[360798155,1747030149263,-300.0,0.00015286,2]
[360798156,1747030149309,-500.0,0.00015286,2]
[360798157,1747030149354,-375.40541202,0.00015286,2]
[360798158,1747030149395,-500.0,0.00015286,2]
[360798159,1747030149419,-500.0,0.00015286,2]
[360798160,1747030149449,-500.0,0.00015286,2]
[360798161,1747030149482,-500.0,0.00015286,2]
[360798162,1747030149508,-442.90545187,0.00015286,2]
[360798163,1747030149530,-500.0,0.00015287,2]
[360798164,1747030149551,-614.5469505,0.00015287,2]
[360798165,1747030149573,-500.0,0.00015287,2]
[360798166,1747030149594,-500.0,0.00015287,2]
[360798167,1747030149614,-500.0,0.00015287,2]
[360798169,1747030149637,-500.0,0.00015287,2]
[360798170,1747030149659,-563.5667068,0.00015287,2]
[360798171,1747030149683,-500.0,0.00015287,2]
[360798172,1747030149705,-203.62182266,0.00015287,2]
[360798173,1747030149728,-500.0,0.00015287,2]
[360798174,1747030149755,-500.0,0.00015287,2]
[360798175,1747030149778,-500.0,0.00015287,2]
[360798176,1747030149801,-500.0,0.00015287,2]
[360798177,1747030149823,-500.0,0.00015287,2]
[360798178,1747030149849,-500.0,0.00015287,2]
[360798179,1747030149876,-500.0,0.00015287,2]
[360798180,1747030149921,-500.0,0.00015287,2]
[360798181,1747030149972,-302.00689333,0.00015287,2]
[360798182,1747030150016,-500.0,0.00015287,2]
[360798183,1747030150047,-178.43547922,0.00015287,2]
[360798184,1747030150076,-500.0,0.00015287,2]
[360798185,1747030150104,-500.0,0.00015287,2]
[360798186,1747030150127,-500.0,0.00015287,2]
[360798187,1747030150148,-500.0,0.00015287,2]
[360798188,1747030150169,-241.72239656,0.00015287,2]
[360798189,1747030150200,-500.0,0.00015287,2]
[360798190,1747030150223,-500.0,0.00015287,2]
[360798191,1747030150248,-500.0,0.00015287,2]
[360798192,1747030150278,-500.0,0.00015287,2]
[360798193,1747030150302,-500.0,0.00015287,2]
[360798194,1747030150324,-500.0,0.00015287,2]
[360798195,1747030150352,-500.0,0.00015287,2]
[360798196,1747030150373,-94.71288943,0.00015287,2]
[360798197,1747030150507,-405.28711057,0.00015287,2]
[360798198,1747030150538,-500.0,0.00015287,2]
[360798199,1747030150566,-500.0,0.00015287,2]
[360798200,1747030150593,-500.0,0.00015287,2]
[360798201,1747030150619,-500.0,0.00015287,2]
[360798202,1747030150654,-500.0,0.00015287,2]
[360798203,1747030150678,-500.0,0.00015287,2]
[360798204,1747030150708,-500.0,0.00015287,2]
[360798205,1747030150735,-500.0,0.00015287,2]
[360798206,1747030150766,-500.0,0.00015287,2]
[360798207,1747030150791,-500.0,0.00015287,2]
[360798208,1747030150812,-500.0,0.00015287,2]
[360798209,1747030150836,-500.0,0.00015287,2]
[360798210,1747030150859,-500.0,0.00015287,2]
[360798211,1747030150883,-500.0,0.00015287,2]
[360798212,1747030150908,-500.0,0.00015287,2]
[360798213,1747030150937,-500.0,0.00015287,2]
[360798214,1747030150965,-416.62336208,0.00015287,2]
[360798215,1747030150987,-308.67953029,0.00015287,2]
[360798216,1747030151010,-2591.99231807,0.00015287,2]
[360798217,1747030151032,-438.58667955,0.00015292,2]
[360798218,1747030151055,-500.0,0.00015292,2]
[360798219,1747030151076,-500.0,0.00015292,2]
[360798220,1747030151098,-500.0,0.00015292,2]
[360798221,1747030151120,-500.0,0.00015292,2]
[360798222,1747030151142,-500.0,0.00015292,2]
[360798223,1747030151164,-500.0,0.00015292,2]
[360798224,1747030151186,-276.53362736,0.00015292,2]
[360798225,1747030151207,-450.0,0.00015292,2]
[360798226,1747030151229,-505.15078347,0.00015292,2]
[360798227,1747030151251,-2062.11566299,0.00015293,2]
[360798228,1747030154096,-527.53603477,0.000144,2]
[360798328,1747030243686,-123.00385903,0.000144,2]
[360798329,1747030243696,-300.0,0.00015215,2]
[360798330,1747030243706,-5947.414072,0.00015216,2]
[360798332,1747030243716,-892910.35003935,0.00015216,2]
[360798333,1747030243726,-1200.0,0.00015291,2]
[360798334,1747030243735,-300.0,0.00015292,2]
[360798335,1747030243745,-300.0,0.00015292,2]
[360798336,1747030243754,-300.0,0.00015292,2]
[360798337,1747030243764,-22837.88433701,0.00015293,2]
[360798338,1747030243773,-500.0,0.000153,2]
[360798339,1747030243783,-502.87091991,0.000153,2]
[360798340,1747030243793,-500.0,0.000153,2]
[360798341,1747030243803,-500.0,0.000153,2]
[360798342,1747030243812,-500.0,0.000153,2]
[360798343,1747030243822,-591.63772929,0.000153,2]
[360798344,1747030243831,-500.0,0.000153,2]
[360798345,1747030243840,-500.01705621,0.000153,2]
[360798346,1747030243850,-500.0,0.000153,2]
[360798347,1747030243859,-500.0,0.000153,2]
[360798348,1747030243869,-500.0,0.000153,2]
[360798349,1747030243878,-500.0,0.000153,2]
[360798350,1747030243887,-500.0,0.000153,2]
[360798351,1747030243896,-501.20008006,0.000153,2]
[360798352,1747030243906,-500.0,0.000153,2]
[360798353,1747030243922,-500.0,0.000153,2]
[360798354,1747030243933,-519.67318067,0.000153,2]
[360798355,1747030243944,-500.0,0.000153,2]
[360798356,1747030243955,-219.58860285,0.000153,2]
[360798357,1747030243964,-501.49922648,0.000153,2]
[360798358,1747030243976,-500.0,0.000153,2]
[360798359,1747030243985,-500.0,0.000153,2]
[360798360,1747030243994,-500.0,0.000153,2]
[360798361,1747030244004,-500.0,0.000153,2]
[360798362,1747030244013,-152.0,0.00015335,2]
[360798363,1747030244023,-1476.50242314,0.00015441,2]
[360798364,1747030244033,-160.0,0.00015721,2]
[360798365,1747030244042,-297.74148355,0.000166,2]
[360798366,1747030244051,-180.0,0.00016648,2]
[360798367,1747030244061,-420.0,0.00016731,2]
[360798368,1747030244070,-1680.0,0.00016815,2]
[360798369,1747030244079,-10340.08730336,0.000169,2]
[360798370,1747030244088,-207.4,0.00016995,2]
[360798371,1747030244097,-10340.08730333,0.00017383,2]
[360798372,1747030244107,-456.60976294,0.00017561,2]
[360798373,1747030244116,-4238.20900776,0.00017866,2]
[360798391,1747030254167,-4581.06348998,0.00017866,2]
[360798392,1747030254178,-1520.81480559,0.00017866,2]
[360798393,1747030254188,-198.11637398,0.00018082,3]
[360798394,1747030254197,-245.6399286,0.00018182,2]
[360798395,1747030254206,-587.0,0.00018306,2]
[360798396,1747030254216,-10340.08730333,0.00018348,2]
[360798397,1747030254225,-215.0738,0.00018364,2]
[360798398,1747030254235,-1169.0,0.00018491,2]
[360798399,1747030254245,-638.07071503,0.0001855,2]
[360798400,1747030254254,-10340.08730333,0.00018831,2]
[360798401,1747030254263,-11415.95431534,0.00018872,2]
[360798402,1747030254273,-2508.17197079,0.000189,2]
[360798403,1747030254282,-2238.7344302,0.00018905,2]
[360798404,1747030254291,-2508.17197077,0.00018945,2]
[360798405,1747030254305,-225.0,0.00018946,2]
[360798406,1747030254314,-2508.17197077,0.00018989,2]
[360798407,1747030254324,-4000.0,0.00019,4]
[360798408,1747030254333,-183970.25469659,0.00019,2]
[360798409,1747030254343,-52055.23446344,0.00019,2]
[360798410,1747030254352,-5000.0,0.00019,3]
[360798411,1747030254362,-250.0,0.00019028,2]
[360798412,1747030254371,-2508.17197077,0.00019034,2]
[360798413,1747030254382,-2508.17197077,0.00019078,2]
[360798414,1747030254392,-150.363,0.00019104,2]
[360798415,1747030254401,-1982.99274406,0.0001915,2]
[360798416,1747030254411,-163.5,0.0001915,2]
[360798417,1747030254420,-163.5,0.0001915,2]
[360798418,1747030254429,-163.5,0.0001915,2]
[360798419,1747030254438,-163.5,0.0001915,2]
[360798420,1747030254447,-163.5,0.0001915,2]
[360798421,1747030254457,-163.5,0.0001915,2]
[360798422,1747030254466,-163.5,0.0001915,2]
[360798423,1747030254475,-500.0,0.00019173,2]
[360798424,1747030254484,-500.23060352,0.00019173,2]
[360798425,1747030254494,-500.0,0.00019173,2]
[360798426,1747030254503,-500.0,0.00019173,2]
[360798427,1747030254512,-500.0,0.00019173,2]
[360798428,1747030254521,-500.0,0.00019173,2]
[360798429,1747030254530,-500.0,0.00019173,2]
[360798430,1747030254539,-16470.62835806,0.00019173,2]
[360798431,1747030254591,-6074.75990741,0.00019173,2]
[360798452,1747030383018,300.0,0.00015214,2]
[360798453,1747030399765,201.5423917,0.00015115,2]
[360798599,1747031352122,-300.0,0.00013159,2]
[360798600,1747031352145,-541.241599,0.00013699,2]
[360798601,1747031352180,-250.0,0.00015085,2]
[360798602,1747031352204,-1200.0,0.00015099,2]
[360798603,1747031352227,-300.0,0.00015099,2]
[360798604,1747031352256,-300.0,0.00015099,2]
[360798605,1747031352279,-7989.17357041,0.000151,3]
[360798673,1747031436998,-7888.55557961,0.00013059,2]
[360798675,1747031437008,-1200.0,0.00015099,2]
[360798677,1747031437018,-237.62144735,0.000151,3]
[360798679,1747031437028,-300.0,0.00015747,2]
[360798681,1747031437037,-800.0,0.00015748,3]
[360798683,1747031437047,-8893.44639348,0.000159,2]
[360798685,1747031437056,-300.0,0.00016137,2]
[360798687,1747031437066,-300.0,0.00016137,2]
[360798689,1747031437074,-300.0,0.00016137,2]
[360798691,1747031437083,-300.0,0.00016137,2]